[Event "Titled Tuesday Blitz October 18 Late 2022"]
[White "McCoy, Owen"]
[Black "Ozen, Bahadir"]
[WhiteFideId "30924502"]
[BlackFideId "6337058"]
[WhiteElo "2507"]
[BlackElo "2750"]
[Result "0-1"]
[Round "02"]
[TimeControl "180+1"]
[Date "2022.10.19"]
[WhiteClock "0:00:06"]
[BlackClock "0:00:09"]

1. Nf3 {[%clk 0:03:00]}  g6 {[%clk 0:03:00]} 2. c4 {[%clk 0:02:59]}  Bg7 {[%clk 0:02:59]} 3. g3 {[%clk 0:02:57]}  Nf6 {[%clk 0:02:58]} 4. Bg2 {[%clk 0:02:57]}  O-O {[%clk 0:02:59]} 5. O-O {[%clk 0:02:58]}  c6 {[%clk 0:02:58]} 6. d4 {[%clk 0:02:49]}  d6 {[%clk 0:02:58]} 7. Nc3 {[%clk 0:02:46]}  Bf5 {[%clk 0:02:58]} 8. h3 {[%clk 0:02:39]}  Ne4 {[%clk 0:02:58]} 9. Ne1 {[%clk 0:02:32]}  Nxc3 {[%clk 0:02:53]} 10. bxc3 {[%clk 0:02:33]}  Be6 {[%clk 0:02:50]} 11. Qd3 {[%clk 0:02:28]}  Qa5 {[%clk 0:02:47]} 12. Nc2 {[%clk 0:02:19]}  Qa4 {[%clk 0:02:40]} 13. Ne3 {[%clk 0:02:04]}  Na6 {[%clk 0:02:39]} 14. Bd2 {[%clk 0:02:01]}  Rab8 {[%clk 0:02:37]} 15. Rfb1 {[%clk 0:02:01]}  Rfc8 {[%clk 0:02:36]} 16. Rb2 {[%clk 0:01:57]}  b5 {[%clk 0:02:18]} 17. cxb5 {[%clk 0:01:47]}  cxb5 {[%clk 0:02:12]} 18. Rab1 {[%clk 0:01:47]}  Nc7 {[%clk 0:02:11]} 19. Kh2 {[%clk 0:01:21]}  a6 {[%clk 0:02:10]} 20. d5 {[%clk 0:01:00]}  Bd7 {[%clk 0:02:10]} 21. Rb4 {[%clk 0:00:58]}  Qxa2 {[%clk 0:01:41]} 22. R1b2 {[%clk 0:00:58]}  Qa1 {[%clk 0:01:41]} 23. Rb1 {[%clk 0:00:55]}  Qa5 {[%clk 0:01:36]} 24. R1b3 {[%clk 0:00:54]}  Qb6 {[%clk 0:01:33]} 25. Rh4 {[%clk 0:00:53]}  Ne8 {[%clk 0:01:29]} 26. Ng4 {[%clk 0:00:50]}  Nf6 {[%clk 0:01:28]} 27. Nh6+ {[%clk 0:00:49]}  Kf8 {[%clk 0:01:28]} 28. g4 {[%clk 0:00:40]}  Qxf2 {[%clk 0:01:27]} 29. Bg5 {[%clk 0:00:34]}  Rc4 {[%clk 0:01:20]} 30. Rb1 {[%clk 0:00:33]}  Ne4 {[%clk 0:00:54]} 31. Rf1 {[%clk 0:00:24]}  Be5+ {[%clk 0:00:54]} 32. Kh1 {[%clk 0:00:24]}  Ng3+ {[%clk 0:00:54]} 33. Qxg3 {[%clk 0:00:24]}  Qxg3 {[%clk 0:00:51]} 34. Rxf7+ {[%clk 0:00:23]}  Ke8 {[%clk 0:00:52]} 35. Rxe7+ {[%clk 0:00:24]}  Kd8 {[%clk 0:00:51]} 36. Rxe5+ {[%clk 0:00:22]}  Kc7 {[%clk 0:00:51]} 37. Re3 {[%clk 0:00:21]}  Qe1+ {[%clk 0:00:51]} 38. Kh2 {[%clk 0:00:21]}  Rxc3 {[%clk 0:00:45]} 39. Rxc3+ {[%clk 0:00:20]}  Qxc3 {[%clk 0:00:46]} 40. Nf7 {[%clk 0:00:20]}  Rf8 {[%clk 0:00:38]} 41. Rxh7 {[%clk 0:00:20]}  Qd4 {[%clk 0:00:21]} 42. e3 {[%clk 0:00:19]}  Qc5 {[%clk 0:00:11]} 43. Bf4 {[%clk 0:00:19]}  Rxf7 {[%clk 0:00:10]} 44. Rxf7 {[%clk 0:00:20]}  b4 {[%clk 0:00:10]} 45. Be4 {[%clk 0:00:20]}  b3 {[%clk 0:00:11]} 46. Bxg6 {[%clk 0:00:19]}  b2 {[%clk 0:00:10]} 47. Bf5 {[%clk 0:00:18]}  Qb5 {[%clk 0:00:09]} 48. Bb1 {[%clk 0:00:14]}  Qe2+ {[%clk 0:00:08]} 49. Kg3 {[%clk 0:00:13]}  Qe1+ {[%clk 0:00:08]} 50. Kf3 {[%clk 0:00:11]}  Qxb1 {[%clk 0:00:09]} 51. Rf6 {[%clk 0:00:11]}  Qd1+ {[%clk 0:00:09]} 52. Kg3 {[%clk 0:00:12]}  b1=Q {[%clk 0:00:09]} 53. Rxd6 {[%clk 0:00:11]}  Qg1+ {[%clk 0:00:08]} 54. Kh4 {[%clk 0:00:11]}  Kc8 {[%clk 0:00:07]} 55. Rh6 {[%clk 0:00:08]}  Qf2+ {[%clk 0:00:07]} 56. Kg5 {[%clk 0:00:08]}  Qxf4+ {[%clk 0:00:06]} 57. exf4 {[%clk 0:00:08]}  a5 {[%clk 0:00:07]} 58. f5 {[%clk 0:00:08]}  a4 {[%clk 0:00:07]} 59. f6 {[%clk 0:00:08]}  Qc1+ {[%clk 0:00:07]} 60. Kg6 {[%clk 0:00:08]}  Qc2+ {[%clk 0:00:08]} 61. Kg7 {[%clk 0:00:08]}  Qc3 {[%clk 0:00:08]} 62. Rh8+ {[%clk 0:00:04]}  Kb7 {[%clk 0:00:08]} 63. Rd8 {[%clk 0:00:04]}  Bc8 {[%clk 0:00:08]} 64. Re8 {[%clk 0:00:03]}  a3 {[%clk 0:00:08]} 65. Re7+ {[%clk 0:00:04]}  Kb8 {[%clk 0:00:09]} 66. Kg6 {[%clk 0:00:04]}  Qc2+ {[%clk 0:00:08]} 67. Kg7 {[%clk 0:00:04]}  a2 {[%clk 0:00:09]} 68. f7 {[%clk 0:00:05]}  a1=Q+ {[%clk 0:00:09]} 69. Kg8 {[%clk 0:00:05]}  Qg6+ {[%clk 0:00:09]} 70. Kf8 {[%clk 0:00:06]}  Qh8# {[%clk 0:00:09]} 0-1


[Site "https://www.chess.com"]

[Event "Titled Tuesday Blitz October 18 Late 2022"]
[White "Mikheeva, Galina"]
[Black "Mickiewicz, Piotr"]
[WhiteFideId "44108320"]
[BlackFideId "1114891"]
[WhiteElo "1959"]
[BlackElo "2246"]
[Result "0-1"]
[Round "02"]
[TimeControl "180+1"]
[Date "2022.10.19"]
[WhiteClock "0:00:01"]
[BlackClock "0:00:19"]

1. e4 {[%clk 0:03:00]}  c6 {[%clk 0:02:59]} 2. d4 {[%clk 0:03:00]}  d5 {[%clk 0:03:00]} 3. exd5 {[%clk 0:02:59]}  cxd5 {[%clk 0:02:59]} 4. c4 {[%clk 0:03:00]}  Nf6 {[%clk 0:02:58]} 5. Nc3 {[%clk 0:03:00]}  e6 {[%clk 0:02:58]} 6. Nf3 {[%clk 0:02:59]}  Be7 {[%clk 0:02:57]} 7. Be2 {[%clk 0:02:54]}  dxc4 {[%clk 0:02:55]} 8. Bxc4 {[%clk 0:02:53]}  O-O {[%clk 0:02:56]} 9. O-O {[%clk 0:02:53]}  Nc6 {[%clk 0:02:54]} 10. a4 {[%clk 0:02:48]}  Nb4 {[%clk 0:02:51]} 11. Bg5 {[%clk 0:02:45]}  b6 {[%clk 0:02:48]} 12. Qb3 {[%clk 0:02:43]}  Bb7 {[%clk 0:02:43]} 13. Ne2 {[%clk 0:02:32]}  Rc8 {[%clk 0:02:21]} 14. Bxf6 {[%clk 0:02:28]}  gxf6 {[%clk 0:02:19]} 15. Rad1 {[%clk 0:02:26]}  Bd5 {[%clk 0:02:14]} 16. Bxd5 {[%clk 0:02:25]}  Qxd5 {[%clk 0:02:12]} 17. Qxd5 {[%clk 0:02:23]}  Nxd5 {[%clk 0:02:08]} 18. Rc1 {[%clk 0:02:23]}  Bd6 {[%clk 0:01:20]} 19. g3 {[%clk 0:02:11]}  f5 {[%clk 0:01:17]} 20. Ne5 {[%clk 0:02:08]}  f6 {[%clk 0:01:12]} 21. Nc6 {[%clk 0:01:56]}  a6 {[%clk 0:01:07]} 22. Rc2 {[%clk 0:01:35]}  Rc7 {[%clk 0:01:07]} 23. Rfc1 {[%clk 0:01:35]}  Rfc8 {[%clk 0:01:08]} 24. b4 {[%clk 0:01:31]}  b5 {[%clk 0:01:02]} 25. axb5 {[%clk 0:01:28]}  axb5 {[%clk 0:01:02]} 26. Nf4 {[%clk 0:01:12]}  Bxf4 {[%clk 0:00:58]} 27. gxf4 {[%clk 0:01:12]}  Kf8 {[%clk 0:00:58]} 28. Rc5 {[%clk 0:01:11]}  Ke8 {[%clk 0:00:57]} 29. Na7 {[%clk 0:01:07]}  Rxc5 {[%clk 0:00:56]} 30. bxc5 {[%clk 0:01:02]}  Rb8 {[%clk 0:00:52]} 31. Rb1 {[%clk 0:00:59]}  b4 {[%clk 0:00:49]} 32. Nc6 {[%clk 0:00:51]}  Rb5 {[%clk 0:00:44]} 33. Na7 {[%clk 0:00:44]}  Rb7 {[%clk 0:00:43]} 34. Nc6 {[%clk 0:00:43]}  Kd7 {[%clk 0:00:41]} 35. Na5 {[%clk 0:00:43]}  Rb5 {[%clk 0:00:41]} 36. Nb3 {[%clk 0:00:28]}  Nxf4 {[%clk 0:00:40]} 37. Kf1 {[%clk 0:00:27]}  Nd5 {[%clk 0:00:37]} 38. Ke1 {[%clk 0:00:25]}  Rb8 {[%clk 0:00:34]} 39. Kd2 {[%clk 0:00:22]}  Ra8 {[%clk 0:00:34]} 40. Ra1 {[%clk 0:00:18]}  Rxa1 {[%clk 0:00:33]} 41. Nxa1 {[%clk 0:00:19]}  e5 {[%clk 0:00:33]} 42. Nb3 {[%clk 0:00:18]}  Kc6 {[%clk 0:00:31]} 43. Kd3 {[%clk 0:00:16]}  Kb5 {[%clk 0:00:31]} 44. dxe5 {[%clk 0:00:07]}  fxe5 {[%clk 0:00:30]} 45. Nc1 {[%clk 0:00:04]}  Kxc5 {[%clk 0:00:27]} 46. Nb3+ {[%clk 0:00:04]}  Kb5 {[%clk 0:00:27]} 47. Nd2 {[%clk 0:00:04]}  Nf4+ {[%clk 0:00:26]} 48. Ke3 {[%clk 0:00:03]}  Ne6 {[%clk 0:00:27]} 49. Nf3 {[%clk 0:00:01]}  e4 {[%clk 0:00:25]} 50. Nd2 {[%clk 0:00:01]}  Kc5 {[%clk 0:00:21]} 51. f3 {[%clk 0:00:01]}  exf3 {[%clk 0:00:19]} 0-1


[Site "https://www.chess.com"]

[Event "Titled Tuesday Blitz October 18 Late 2022"]
[White "Mohammadian, Mohammad"]
[Black "D`Arruda, Ricardo D."]
[WhiteFideId "12566055"]
[BlackFideId "100692"]
[WhiteElo "1489"]
[BlackElo "2401"]
[Result "0-1"]
[Round "02"]
[TimeControl "180+1"]
[Date "2022.10.19"]
[WhiteClock "0:01:02"]
[BlackClock "0:02:32"]

1. e4 {[%clk 0:03:00]}  c5 {[%clk 0:02:58]} 2. Nf3 {[%clk 0:02:59]}  Nc6 {[%clk 0:02:58]} 3. d4 {[%clk 0:02:59]}  cxd4 {[%clk 0:02:59]} 4. Nxd4 {[%clk 0:02:59]}  e5 {[%clk 0:02:59]} 5. Nb5 {[%clk 0:02:58]}  a6 {[%clk 0:03:00]} 6. Nd6+ {[%clk 0:02:57]}  Bxd6 {[%clk 0:03:00]} 7. Qxd6 {[%clk 0:02:56]}  Qe7 {[%clk 0:03:01]} 8. Qxe7+ {[%clk 0:02:56]}  Ngxe7 {[%clk 0:03:01]} 9. Nc3 {[%clk 0:02:56]}  Nb4 {[%clk 0:03:01]} 10. Bd3 {[%clk 0:02:51]}  d5 {[%clk 0:03:01]} 11. exd5 {[%clk 0:02:50]}  Bf5 {[%clk 0:03:01]} 12. Bxf5 {[%clk 0:02:43]}  Nxf5 {[%clk 0:03:02]} 13. Kd2 {[%clk 0:02:33]}  O-O-O {[%clk 0:03:02]} 14. a3 {[%clk 0:02:33]}  Nxd5 {[%clk 0:03:01]} 15. Nxd5 {[%clk 0:02:32]}  Rxd5+ {[%clk 0:03:02]} 16. Ke1 {[%clk 0:02:23]}  Nd4 {[%clk 0:02:59]} 17. c3 {[%clk 0:02:19]}  Nc2+ {[%clk 0:02:58]} 18. Ke2 {[%clk 0:02:17]}  Nxa1 {[%clk 0:02:59]} 19. Be3 {[%clk 0:02:15]}  Nb3 {[%clk 0:02:58]} 20. Re1 {[%clk 0:02:11]}  Rhd8 {[%clk 0:02:56]} 21. f3 {[%clk 0:02:10]}  f6 {[%clk 0:02:53]} 22. h4 {[%clk 0:02:08]}  b5 {[%clk 0:02:53]} 23. g4 {[%clk 0:02:07]}  Kb7 {[%clk 0:02:50]} 24. h5 {[%clk 0:02:00]}  h6 {[%clk 0:02:49]} 25. Rf1 {[%clk 0:01:47]}  Na5 {[%clk 0:02:48]} 26. b4 {[%clk 0:01:43]}  Nc4 {[%clk 0:02:47]} 27. Bc1 {[%clk 0:01:40]}  Rd3 {[%clk 0:02:44]} 28. Kf2 {[%clk 0:01:11]}  Rd1 {[%clk 0:02:42]} 29. Rxd1 {[%clk 0:01:10]}  Rxd1 {[%clk 0:02:41]} 30. Be3 {[%clk 0:01:10]}  Nxe3 {[%clk 0:02:36]} 31. Kxe3 {[%clk 0:01:09]}  Ra1 {[%clk 0:02:35]} 32. Ke4 {[%clk 0:01:09]}  Rxa3 {[%clk 0:02:35]} 33. Kf5 {[%clk 0:01:10]}  Rxc3 {[%clk 0:02:35]} 34. Kg6 {[%clk 0:01:10]}  Rxf3 {[%clk 0:02:35]} 35. Kxg7 {[%clk 0:01:10]}  e4 {[%clk 0:02:35]} 36. Kxh6 {[%clk 0:01:07]}  e3 {[%clk 0:02:35]} 37. Kg6 {[%clk 0:01:07]}  e2 {[%clk 0:02:35]} 38. h6 {[%clk 0:01:07]}  e1=Q {[%clk 0:02:36]} 39. h7 {[%clk 0:01:08]}  Qe8+ {[%clk 0:02:33]} 40. Kg7 {[%clk 0:01:06]}  Rh3 {[%clk 0:02:33]} 41. Kxf6 {[%clk 0:01:02]}  Rxh7 {[%clk 0:02:32]} 0-1


[Site "https://www.chess.com"]

[Event "Titled Tuesday Blitz October 18 Late 2022"]
[White "Naroditsky, Daniel"]
[Black "Fernandez De La Vara, Arnaldo"]
[WhiteFideId "2026961"]
[BlackFideId "3518388"]
[WhiteElo "2628"]
[BlackElo "2387"]
[Result "1-0"]
[Round "02"]
[TimeControl "180+1"]
[Date "2022.10.18"]
[WhiteClock "0:00:08"]
[BlackClock "0:00:02"]

1. e4 {[%clk 0:02:56]}  c5 {[%clk 0:03:00]} 2. Nf3 {[%clk 0:02:54]}  e6 {[%clk 0:03:01]} 3. c3 {[%clk 0:02:54]}  d5 {[%clk 0:03:01]} 4. exd5 {[%clk 0:02:55]}  Qxd5 {[%clk 0:03:02]} 5. d4 {[%clk 0:02:55]}  Nc6 {[%clk 0:03:03]} 6. Be3 {[%clk 0:02:55]}  Nf6 {[%clk 0:03:03]} 7. Nbd2 {[%clk 0:02:50]}  cxd4 {[%clk 0:02:58]} 8. Nxd4 {[%clk 0:02:43]}  Bc5 {[%clk 0:02:14]} 9. N2f3 {[%clk 0:02:31]}  Ng4 {[%clk 0:01:59]} 10. Nxc6 {[%clk 0:02:16]}  Nxe3 {[%clk 0:01:51]} 11. Qxd5 {[%clk 0:01:56]}  Nc2+ {[%clk 0:01:39]} 12. Kd2 {[%clk 0:01:44]}  exd5 {[%clk 0:01:40]} 13. Kxc2 {[%clk 0:01:40]}  bxc6 {[%clk 0:01:40]} 14. Re1+ {[%clk 0:01:32]}  Be6 {[%clk 0:01:40]} 15. Nd4 {[%clk 0:01:32]}  Kd7 {[%clk 0:01:40]} 16. Bd3 {[%clk 0:01:31]}  a5 {[%clk 0:01:10]} 17. Re2 {[%clk 0:01:17]}  Bxd4 {[%clk 0:00:53]} 18. cxd4 {[%clk 0:01:18]}  Rhb8 {[%clk 0:00:53]} 19. Kc3 {[%clk 0:01:09]}  Kd6 {[%clk 0:00:52]} 20. Rc1 {[%clk 0:01:06]}  Rb4 {[%clk 0:00:49]} 21. Rec2 {[%clk 0:00:56]}  Bd7 {[%clk 0:00:45]} 22. h4 {[%clk 0:00:46]}  g6 {[%clk 0:00:44]} 23. g3 {[%clk 0:00:46]}  Rab8 {[%clk 0:00:43]} 24. b3 {[%clk 0:00:43]}  a4 {[%clk 0:00:42]} 25. Rb1 {[%clk 0:00:39]}  Be6 {[%clk 0:00:30]} 26. Rcb2 {[%clk 0:00:38]}  c5 {[%clk 0:00:22]} 27. dxc5+ {[%clk 0:00:36]}  Kxc5 {[%clk 0:00:22]} 28. Kd2 {[%clk 0:00:28]}  axb3 {[%clk 0:00:22]} 29. axb3 {[%clk 0:00:28]}  d4 {[%clk 0:00:22]} 30. Bc2 {[%clk 0:00:26]}  h5 {[%clk 0:00:16]} 31. Bd1 {[%clk 0:00:26]}  Kd6 {[%clk 0:00:14]} 32. Bc2 {[%clk 0:00:26]}  Bc4 {[%clk 0:00:13]} 33. Ra1 {[%clk 0:00:20]}  Bd5 {[%clk 0:00:13]} 34. Ra6+ {[%clk 0:00:20]}  R8b6 {[%clk 0:00:14]} 35. Rxb6+ {[%clk 0:00:19]}  Rxb6 {[%clk 0:00:15]} 36. b4 {[%clk 0:00:20]}  Bc4 {[%clk 0:00:15]} 37. Be4 {[%clk 0:00:20]}  f5 {[%clk 0:00:12]} 38. Bf3 {[%clk 0:00:18]}  Ra6 {[%clk 0:00:10]} 39. Rc2 {[%clk 0:00:14]}  Bd5 {[%clk 0:00:08]} 40. Be2 {[%clk 0:00:11]}  Rb6 {[%clk 0:00:08]} 41. b5 {[%clk 0:00:09]}  Be4 {[%clk 0:00:06]} 42. Rc8 {[%clk 0:00:09]}  d3 {[%clk 0:00:06]} 43. Bxd3 {[%clk 0:00:10]}  Bxd3 {[%clk 0:00:06]} 44. Kxd3 {[%clk 0:00:10]}  Rxb5 {[%clk 0:00:04]} 45. Rg8 {[%clk 0:00:11]}  Rb3+ {[%clk 0:00:02]} 46. Ke2 {[%clk 0:00:09]}  Ke5 {[%clk 0:00:02]} 47. Rxg6 {[%clk 0:00:09]}  Rb2+ {[%clk 0:00:02]} 48. Kf3 {[%clk 0:00:09]}  Rb3+ {[%clk 0:00:02]} 49. Kg2 {[%clk 0:00:10]}  f4 {[%clk 0:00:02]} 50. Rg5+ {[%clk 0:00:05]}  Ke4 {[%clk 0:00:02]} 51. gxf4 {[%clk 0:00:03]}  Kxf4 {[%clk 0:00:03]} 52. Rxh5 {[%clk 0:00:04]}  Kg4 {[%clk 0:00:03]} 53. Rh8 {[%clk 0:00:04]}  Rb5 {[%clk 0:00:02]} 54. f3+ {[%clk 0:00:04]}  Kf4 {[%clk 0:00:03]} 55. Rf8+ {[%clk 0:00:05]}  Ke3 {[%clk 0:00:02]} 56. Kg3 {[%clk 0:00:05]}  Rb7 {[%clk 0:00:02]} 57. h5 {[%clk 0:00:04]}  Rg7+ {[%clk 0:00:01]} 58. Kh4 {[%clk 0:00:05]}  Kf2 {[%clk 0:00:01]} 59. h6 {[%clk 0:00:05]}  Rg1 {[%clk 0:00:01]} 60. Kh5 {[%clk 0:00:05]}  Ke3 {[%clk 0:00:02]} 61. h7 {[%clk 0:00:05]}  Rh1+ {[%clk 0:00:02]} 62. Kg6 {[%clk 0:00:05]}  Rg1+ {[%clk 0:00:02]} 63. Kf6 {[%clk 0:00:06]}  Rh1 {[%clk 0:00:03]} 64. h8=Q {[%clk 0:00:07]}  Rxh8 {[%clk 0:00:02]} 65. Rxh8 {[%clk 0:00:07]}  Kxf3 {[%clk 0:00:02]} 66. Kf5 {[%clk 0:00:08]} 1-0


[Site "https://www.chess.com"]

[Event "Titled Tuesday Blitz October 18 Late 2022"]
[White "Ozalp, Burak"]
[Black "Mladek, Richard"]
[WhiteFideId "6314210"]
[BlackFideId "386588"]
[WhiteElo "2106"]
[BlackElo "2271"]
[Result "1-0"]
[Round "02"]
[TimeControl "180+1"]
[Date "2022.10.19"]
[WhiteClock "0:01:13"]
[BlackClock "0:01:20"]

1. e4 {[%clk 0:03:00]}  f5 {[%clk 0:02:58]} 2. d4 {[%clk 0:02:51]}  fxe4 {[%clk 0:02:57]} 3. f3 {[%clk 0:02:51]}  exf3 {[%clk 0:02:56]} 4. Nxf3 {[%clk 0:02:50]}  Nf6 {[%clk 0:02:55]} 5. Bd3 {[%clk 0:02:50]}  d5 {[%clk 0:02:52]} 6. O-O {[%clk 0:02:47]}  Bg4 {[%clk 0:02:45]} 7. Nbd2 {[%clk 0:02:45]}  c5 {[%clk 0:02:39]} 8. c3 {[%clk 0:02:38]}  Nc6 {[%clk 0:02:38]} 9. Qe1 {[%clk 0:02:28]}  cxd4 {[%clk 0:02:35]} 10. cxd4 {[%clk 0:02:26]}  Qb6 {[%clk 0:02:36]} 11. Kh1 {[%clk 0:01:58]}  O-O-O {[%clk 0:02:24]} 12. Ne5 {[%clk 0:01:54]}  Nxe5 {[%clk 0:02:10]} 13. dxe5 {[%clk 0:01:53]}  Nd7 {[%clk 0:02:11]} 14. Qg3 {[%clk 0:01:39]}  Bh5 {[%clk 0:01:56]} 15. Nb3 {[%clk 0:01:38]}  e6 {[%clk 0:01:52]} 16. Be3 {[%clk 0:01:38]}  Qb4 {[%clk 0:01:50]} 17. Bxa7 {[%clk 0:01:33]}  b6 {[%clk 0:01:38]} 18. Ba6+ {[%clk 0:01:32]}  Kc7 {[%clk 0:01:38]} 19. Rac1+ {[%clk 0:01:29]}  Bc5 {[%clk 0:01:33]} 20. Qxg7 {[%clk 0:01:22]}  Rhg8 {[%clk 0:01:32]} 21. Qe7 {[%clk 0:01:20]}  Qe4 {[%clk 0:01:20]} 22. Qd6# {[%clk 0:01:13]} 1-0


[Site "https://www.chess.com"]

[Event "Titled Tuesday Blitz October 18 Late 2022"]
[White "Ozer, Omer Faruk"]
[Black "Kamsky, Gata"]
[WhiteFideId "6354564"]
[BlackFideId "2000024"]
[WhiteElo "2260"]
[BlackElo "2666"]
[Result "0-1"]
[Round "02"]
[TimeControl "180+1"]
[Date "2022.10.18"]
[WhiteClock "0:00:12"]
[BlackClock "0:01:40"]

1. e4 {[%clk 0:03:00]}  c5 {[%clk 0:02:55]} 2. Nf3 {[%clk 0:03:00]}  e6 {[%clk 0:02:54]} 3. d4 {[%clk 0:02:59]}  cxd4 {[%clk 0:02:54]} 4. Nxd4 {[%clk 0:03:00]}  a6 {[%clk 0:02:53]} 5. Nc3 {[%clk 0:02:58]}  b5 {[%clk 0:02:52]} 6. Bd3 {[%clk 0:02:57]}  Qb6 {[%clk 0:02:49]} 7. Nf3 {[%clk 0:02:56]}  Qc7 {[%clk 0:02:49]} 8. O-O {[%clk 0:02:55]}  Nc6 {[%clk 0:02:49]} 9. Re1 {[%clk 0:02:44]}  Bc5 {[%clk 0:02:42]} 10. e5 {[%clk 0:02:25]}  f5 {[%clk 0:02:40]} 11. a4 {[%clk 0:02:03]}  b4 {[%clk 0:02:39]} 12. Ne2 {[%clk 0:02:04]}  Nge7 {[%clk 0:02:34]} 13. Nf4 {[%clk 0:01:58]}  O-O {[%clk 0:02:20]} 14. b3 {[%clk 0:01:58]}  Bb7 {[%clk 0:02:13]} 15. Bb2 {[%clk 0:01:57]}  Nd8 {[%clk 0:02:07]} 16. h4 {[%clk 0:01:42]}  Nf7 {[%clk 0:02:06]} 17. Ng5 {[%clk 0:01:41]}  Nd5 {[%clk 0:01:59]} 18. Nxd5 {[%clk 0:01:38]}  Bxd5 {[%clk 0:01:58]} 19. Nh3 {[%clk 0:01:23]}  Bb7 {[%clk 0:01:56]} 20. Qh5 {[%clk 0:01:11]}  g6 {[%clk 0:01:54]} 21. Qe2 {[%clk 0:01:09]}  Qd8 {[%clk 0:01:50]} 22. h5 {[%clk 0:01:04]}  Qh4 {[%clk 0:01:50]} 23. Bc1 {[%clk 0:00:31]}  Bd4 {[%clk 0:01:45]} 24. Bf4 {[%clk 0:00:24]}  g5 {[%clk 0:01:43]} 25. Bd2 {[%clk 0:00:14]}  g4 {[%clk 0:01:40]} 26. Nf4 {[%clk 0:00:12]}  g3 {[%clk 0:01:40]} 27. Be3 {[%clk 0:00:12]}  Qh2+ {[%clk 0:01:40]} 0-1


[Site "https://www.chess.com"]

[Event "Titled Tuesday Blitz October 18 Late 2022"]
[White "Pakleza, Zbigniew"]
[Black "Msellek, Ilyass"]
[WhiteFideId "1119290"]
[BlackFideId "675938"]
[WhiteElo "2411"]
[BlackElo "2303"]
[Result "1-0"]
[Round "02"]
[TimeControl "180+1"]
[Date "2022.10.18"]
[WhiteClock "0:00:07"]
[BlackClock "0:00:25"]

1. d4 {[%clk 0:03:00]}  c6 {[%clk 0:02:57]} 2. c4 {[%clk 0:02:58]}  d5 {[%clk 0:02:57]} 3. cxd5 {[%clk 0:02:58]}  cxd5 {[%clk 0:02:58]} 4. Nc3 {[%clk 0:02:59]}  Nc6 {[%clk 0:02:53]} 5. Nf3 {[%clk 0:02:59]}  Nf6 {[%clk 0:02:52]} 6. Bf4 {[%clk 0:02:59]}  Nh5 {[%clk 0:02:51]} 7. Be5 {[%clk 0:02:58]}  f6 {[%clk 0:02:37]} 8. Bg3 {[%clk 0:02:58]}  e6 {[%clk 0:02:16]} 9. e3 {[%clk 0:02:58]}  g6 {[%clk 0:02:12]} 10. Bd3 {[%clk 0:02:58]}  Kf7 {[%clk 0:02:09]} 11. Rc1 {[%clk 0:02:52]}  a6 {[%clk 0:02:07]} 12. a3 {[%clk 0:02:51]}  Nxg3 {[%clk 0:02:05]} 13. hxg3 {[%clk 0:02:52]}  Bd6 {[%clk 0:02:05]} 14. g4 {[%clk 0:02:45]}  Bd7 {[%clk 0:02:01]} 15. Ke2 {[%clk 0:02:32]}  b5 {[%clk 0:02:00]} 16. b4 {[%clk 0:02:17]}  e5 {[%clk 0:01:53]} 17. Nxd5 {[%clk 0:02:01]}  Nxd4+ {[%clk 0:01:39]} 18. exd4 {[%clk 0:01:52]}  e4 {[%clk 0:01:39]} 19. Bxe4 {[%clk 0:01:45]}  Qe8 {[%clk 0:01:30]} 20. Nc3 {[%clk 0:01:30]}  Rc8 {[%clk 0:01:25]} 21. Qb3+ {[%clk 0:01:22]}  Be6 {[%clk 0:01:24]} 22. Nd5 {[%clk 0:01:02]}  Rxc1 {[%clk 0:01:16]} 23. Rxc1 {[%clk 0:01:01]}  Kg7 {[%clk 0:01:13]} 24. Kf1 {[%clk 0:00:56]}  h5 {[%clk 0:01:13]} 25. g5 {[%clk 0:00:54]}  fxg5 {[%clk 0:01:11]} 26. Nxg5 {[%clk 0:00:51]}  Rf8 {[%clk 0:01:10]} 27. Nxe6+ {[%clk 0:00:42]}  Qxe6 {[%clk 0:01:09]} 28. Qd3 {[%clk 0:00:40]}  h4 {[%clk 0:01:03]} 29. Kg1 {[%clk 0:00:35]}  h3 {[%clk 0:01:00]} 30. gxh3 {[%clk 0:00:35]}  Bb8 {[%clk 0:00:48]} 31. Bg2 {[%clk 0:00:32]}  Qd6 {[%clk 0:00:44]} 32. Qg3 {[%clk 0:00:31]}  Qe6 {[%clk 0:00:36]} 33. Qg4 {[%clk 0:00:26]}  Qd6 {[%clk 0:00:32]} 34. f4 {[%clk 0:00:18]}  Ba7 {[%clk 0:00:31]} 35. Rc7+ {[%clk 0:00:15]}  Rf7 {[%clk 0:00:32]} 36. Rxf7+ {[%clk 0:00:13]}  Kxf7 {[%clk 0:00:33]} 37. f5 {[%clk 0:00:12]}  Qe5 {[%clk 0:00:30]} 38. fxg6+ {[%clk 0:00:11]}  Kg7 {[%clk 0:00:30]} 39. Qd7+ {[%clk 0:00:11]}  Kxg6 {[%clk 0:00:31]} 40. Qxa7 {[%clk 0:00:09]}  Qe1+ {[%clk 0:00:30]} 41. Kh2 {[%clk 0:00:08]}  Qe6 {[%clk 0:00:25]} 42. Nf4+ {[%clk 0:00:07]} 1-0


[Site "https://www.chess.com"]

[Event "Titled Tuesday Blitz October 18 Late 2022"]
[White "Pap, Gyula"]
[Black "Noboa Silva, Kevin"]
[WhiteFideId "725323"]
[BlackFideId "3618471"]
[WhiteElo "2519"]
[BlackElo "2178"]
[Result "1-0"]
[Round "02"]
[TimeControl "180+1"]
[Date "2022.10.18"]
[WhiteClock "0:00:34"]
[BlackClock "0:00:05"]

1. g3 {[%clk 0:03:00]}  Nf6 {[%clk 0:02:52]} 2. Bg2 {[%clk 0:03:01]}  e5 {[%clk 0:02:50]} 3. c4 {[%clk 0:02:57]}  c6 {[%clk 0:02:50]} 4. d4 {[%clk 0:02:56]}  e4 {[%clk 0:02:50]} 5. d5 {[%clk 0:02:55]}  Bb4+ {[%clk 0:02:46]} 6. Bd2 {[%clk 0:02:54]}  Qe7 {[%clk 0:02:39]} 7. a3 {[%clk 0:02:49]}  Bxd2+ {[%clk 0:02:38]} 8. Qxd2 {[%clk 0:02:50]}  cxd5 {[%clk 0:02:38]} 9. cxd5 {[%clk 0:02:50]}  d6 {[%clk 0:02:37]} 10. Nc3 {[%clk 0:02:49]}  O-O {[%clk 0:02:37]} 11. Nh3 {[%clk 0:02:06]}  Bf5 {[%clk 0:02:15]} 12. O-O {[%clk 0:02:05]}  Nbd7 {[%clk 0:02:14]} 13. Nf4 {[%clk 0:01:58]}  Rac8 {[%clk 0:02:01]} 14. f3 {[%clk 0:01:52]}  e3 {[%clk 0:01:49]} 15. Qd4 {[%clk 0:01:50]}  Nc5 {[%clk 0:01:39]} 16. Rad1 {[%clk 0:01:20]}  Bc2 {[%clk 0:01:33]} 17. Rde1 {[%clk 0:01:20]}  a5 {[%clk 0:01:25]} 18. Bh3 {[%clk 0:01:11]}  Nb3 {[%clk 0:01:02]} 19. Qb6 {[%clk 0:01:11]}  Rcd8 {[%clk 0:00:30]} 20. Bf5 {[%clk 0:01:11]}  Bxf5 {[%clk 0:00:26]} 21. Qxb3 {[%clk 0:01:11]}  Rfe8 {[%clk 0:00:24]} 22. Qa4 {[%clk 0:01:09]}  Qc7 {[%clk 0:00:22]} 23. Rc1 {[%clk 0:01:08]}  Qb6 {[%clk 0:00:22]} 24. Qb5 {[%clk 0:01:07]}  Qa7 {[%clk 0:00:22]} 25. Rfd1 {[%clk 0:01:05]}  g5 {[%clk 0:00:19]} 26. Ng2 {[%clk 0:01:02]}  Nd7 {[%clk 0:00:16]} 27. Na4 {[%clk 0:01:00]}  Rc8 {[%clk 0:00:13]} 28. Rc3 {[%clk 0:00:49]}  Rxc3 {[%clk 0:00:12]} 29. Nxc3 {[%clk 0:00:50]}  Qa8 {[%clk 0:00:12]} 30. g4 {[%clk 0:00:48]}  Bc2 {[%clk 0:00:12]} 31. Rc1 {[%clk 0:00:47]}  Ne5 {[%clk 0:00:07]} 32. Rxc2 {[%clk 0:00:47]}  Nxf3+ {[%clk 0:00:08]} 33. exf3 {[%clk 0:00:47]}  Re5 {[%clk 0:00:06]} 34. Ne4 {[%clk 0:00:44]}  Qa7 {[%clk 0:00:06]} 35. Re2 {[%clk 0:00:39]}  Kg7 {[%clk 0:00:06]} 36. Nxe3 {[%clk 0:00:38]}  Qd4 {[%clk 0:00:06]} 37. Kg2 {[%clk 0:00:39]}  Kg6 {[%clk 0:00:06]} 38. Nf5 {[%clk 0:00:35]}  Qxd5 {[%clk 0:00:05]} 39. Ne7+ {[%clk 0:00:34]}  Rxe7 {[%clk 0:00:05]} 40. Qxd5 {[%clk 0:00:34]} 1-0


[Site "https://www.chess.com"]